[Event "Ebbe cup 43"]
[Site "Schackcentrum, Vegatan 20, Gothenburg, Sweden"]
[Date "2022.09.10"]
[Round "3.2"]
[White "Konduru, Sairahul"]
[Black "Eldh, Hjalmar"]
[Result "1/2-1/2"]
[TimeControl "90 minutes for 40 moves + 15 minutes for the rest of the game + 30 seconds per move from move one."]
[WhiteFideId "1768247"]
[BlackFideId "1767968"]
[WhiteElo "1281"]
[BlackElo "1717"]

1. e4 {[%clk 01:30:58]} {[%emt 00:00:01]} e5 {[%clk 01:30:52]} {[%emt
00:00:08]} 2. Nf3 {[%clk 01:31:20]} {[%emt 00:00:08]} Nc6 {[%clk 01:31:15]}
{[%emt 00:00:06]} 3. Bc4 {[%clk 01:31:43]} {[%emt 00:00:08]} Nf6 {[%clk
01:31:36]} {[%emt 00:00:10]} 4. d3 {[%clk 01:31:24]} {[%emt 00:00:49]} Bc5
{[%clk 01:31:55]} {[%emt 00:00:10]} 5. c3 {[%clk 01:30:58]} {[%emt 00:00:56]}
O-O {[%clk 01:32:01]} {[%emt 00:00:24]} 6. O-O {[%clk 01:29:28]} {[%emt
00:02:02]} d6 {[%clk 01:32:18]} {[%emt 00:00:12]} 7. h3 {[%clk 01:28:29]}
{[%emt 00:01:30]} a6 {[%clk 01:32:39]} {[%emt 00:00:08]} 8. Bb3 {[%clk
01:28:38]} {[%emt 00:00:21]} h6 {[%clk 01:33:01]} {[%emt 00:00:08]} 9. Nbd2
{[%clk 01:28:49]} {[%emt 00:00:19]} Ne7 {[%clk 01:33:20]} {[%emt 00:00:11]} 10.
Re1 {[%clk 01:28:34]} {[%emt 00:00:46]} Bb6 {[%clk 01:33:44]} {[%emt 00:00:06]}
11. Nf1 {[%clk 01:27:00]} {[%emt 00:02:03]} Ng6 {[%clk 01:34:00]} {[%emt
00:00:12]} 12. Ng3 {[%clk 01:25:20]} {[%emt 00:02:12]} c6 {[%clk 01:32:45]}
{[%emt 00:01:44]} 13. d4 {[%clk 01:21:57]} {[%emt 00:03:54]} Qe7 {[%clk
01:31:27]} {[%emt 00:01:48]} 14. Qd3 {[%clk 01:19:15]} {[%emt 00:03:12]} Be6
{[%clk 01:29:10]} {[%emt 00:02:47]} 15. Nf5 {[%clk 01:14:58]} {[%emt 00:04:48]}
Bxf5 {[%clk 01:23:29]} {[%emt 00:06:11]} 16. exf5 {[%clk 01:14:56]} {[%emt
00:00:32]} e4 {[%clk 01:23:46]} {[%emt 00:00:13]} 17. fxg6 {[%clk 01:14:41]}
{[%emt 00:00:45]} Qc7 {[%clk 01:23:52]} {[%emt 00:00:24]} 18. gxf7+ {[%clk
01:13:43]} {[%emt 00:01:27]} Kh8 {[%clk 01:24:12]} {[%emt 00:00:10]} 19. Qe3
{[%clk 01:13:03]} {[%emt 00:01:10]} exf3 {[%clk 01:24:35]} {[%emt 00:00:07]} 20.
Qxf3 {[%clk 01:13:03]} {[%emt 00:00:30]} Qd8 {[%clk 01:23:54]} {[%emt
00:01:11]} 21. Bf4 {[%clk 01:06:38]} {[%emt 00:06:55]} d5 {[%clk 01:24:10]}
{[%emt 00:00:14]} 22. Bc2 {[%clk 01:06:52]} {[%emt 00:00:16]} Rxf7 {[%clk
01:24:18]} {[%emt 00:00:21]} 23. Qd3 {[%clk 01:06:41]} {[%emt 00:00:40]} Qf8
{[%clk 01:16:50]} {[%emt 00:07:59]} 24. Be5 {[%clk 01:05:00]} {[%emt 00:02:11]}
Bc7 {[%clk 01:16:52]} {[%emt 00:00:28]} 25. Bxf6 {[%clk 01:03:26]} {[%emt
00:02:04]} gxf6 {[%clk 01:17:17]} {[%emt 00:00:06]} 26. Re6 {[%clk 01:02:02]}
{[%emt 00:01:54]} Qg7 {[%clk 01:17:23]} {[%emt 00:00:22]} 27. Rae1 {[%clk
01:01:16]} {[%emt 00:01:18]} Rg8 {[%clk 01:17:24]} {[%emt 00:00:28]} 28. Qf3
{[%clk 01:01:08]} {[%emt 00:00:37]} Qg5 {[%clk 01:08:39]} {[%emt 00:09:17]} 29.
Re7 {[%clk 00:57:18]} {[%emt 00:04:20]} Rfg7 {[%clk 01:06:17]} {[%emt
00:02:52]} 30. Rxg7 {[%clk 00:57:22]} {[%emt 00:00:27]} Qxg7 {[%clk 01:06:24]}
{[%emt 00:00:23]} 31. Bf5 {[%clk 00:50:56]} {[%emt 00:06:55]} Qg5 {[%clk
01:03:07]} {[%emt 00:03:47]} 32. Kf1 {[%clk 00:45:30]} {[%emt 00:05:55]} Bf4
{[%clk 00:56:57]} {[%emt 00:06:41]} 33. Qg4 {[%clk 00:44:22]} {[%emt 00:01:37]}
b6 {[%clk 00:52:28]} {[%emt 00:04:59]} 34. Qxg5 {[%clk 00:43:30]} {[%emt
00:01:23]} hxg5 {[%clk 00:52:38]} {[%emt 00:00:20]} 35. Re6 {[%clk 00:41:48]}
{[%emt 00:02:12]} Bc1 {[%clk 00:53:00]} {[%emt 00:00:08]} 36. Rxc6 {[%clk
00:39:43]} {[%emt 00:02:35]} Bxb2 {[%clk 00:53:17]} {[%emt 00:00:12]} 37. Rxb6
{[%clk 00:39:43]} {[%emt 00:00:30]} Bxc3 {[%clk 00:53:37]} {[%emt 00:00:10]} 38.
Rxf6 {[%clk 00:39:41]} {[%emt 00:00:31]} Rb8 {[%clk 00:53:43]} {[%emt
00:00:24]} 39. g4 {[%clk 00:38:00]} {[%emt 00:02:12]} Bxd4 {[%clk 00:53:43]}
{[%emt 00:00:31]} 40. Rf7 {[%clk 00:37:10]} {[%emt 00:01:17]} Rb2 {[%clk
00:52:31]} {[%emt 00:01:43]} 41. Be6 {[%clk 00:37:00]} {[%emt 00:00:41]} Rxa2
{[%clk 00:52:30]} {[%emt 00:00:32]} 42. Bxd5 {[%clk 00:37:15]} {[%emt
00:00:14]} Ra1+ {[%clk 00:52:37]} {[%emt 00:00:23]} 43. Kg2 {[%clk 00:37:26]}
{[%emt 00:00:19]} a5 {[%clk 00:52:09]} {[%emt 00:00:59]} 44. Re7 {[%clk
00:36:50]} {[%emt 00:01:05]} Rd1 {[%clk 00:51:18]} {[%emt 00:01:20]} 45. Re2
{[%clk 00:33:18]} {[%emt 00:04:03]} Bc3 {[%clk 00:47:43]} {[%emt 00:04:05]} 46.
Bb3 {[%clk 00:32:51]} {[%emt 00:00:57]} Rd6 {[%clk 00:47:36]} {[%emt 00:00:37]}
47. Be6 {[%clk 00:30:25]} {[%emt 00:02:57]} 1/2-1/2

[Event "Ebbe cup 43"]
[Site "Schackcentrum, Vegatan 20, Gothenburg, Sweden"]
[Date "2022.09.10"]
[Round "3.3"]
[White "Josefsson, Ivar"]
[Black "Karlsson, Stefan"]
[Result "0-1"]
[TimeControl "90 minutes for 40 moves + 15 minutes for the rest of the game + 30 seconds per move from move one."]
[WhiteFideId "1766040"]
[BlackFideId "1771183"]
[WhiteElo "1634"]
[BlackElo "1660"]

1. d4 {[%clk 01:29:20]} {[%emt 00:01:40]} f5 {[%clk 01:30:09]} {[%emt
00:00:52]} 2. Nc3 {[%clk 01:23:12]} {[%emt 00:06:38]} Nf6 {[%clk 01:30:31]}
{[%emt 00:00:08]} 3. Bg5 {[%clk 01:23:26]} {[%emt 00:00:16]} d5 {[%clk
01:30:55]} {[%emt 00:00:06]} 4. Nf3 {[%clk 01:22:51]} {[%emt 00:01:04]} e6
{[%clk 01:26:13]} {[%emt 00:05:12]} 5. g3 {[%clk 01:18:58]} {[%emt 00:04:23]}
c6 {[%clk 01:23:41]} {[%emt 00:03:02]} 6. Bg2 {[%clk 01:15:33]} {[%emt
00:03:56]} Bd6 {[%clk 01:18:51]} {[%emt 00:05:19]} 7. Qd2 {[%clk 01:10:40]}
{[%emt 00:05:23]} Nbd7 {[%clk 01:17:31]} {[%emt 00:01:50]} 8. Bf4 {[%clk
01:09:29]} {[%emt 00:01:41]} Bb4 {[%clk 01:15:21]} {[%emt 00:02:40]} 9. O-O
{[%clk 01:05:19]} {[%emt 00:04:40]} Ne4 {[%clk 01:12:10]} {[%emt 00:03:41]} 10.
Qe1 {[%clk 01:05:23]} {[%emt 00:00:27]} g5 {[%clk 01:05:07]} {[%emt 00:07:32]}
11. Bd2 {[%clk 01:04:50]} {[%emt 00:01:02]} Nxd2 {[%clk 01:04:18]} {[%emt
00:01:19]} 12. Qxd2 {[%clk 01:05:13]} {[%emt 00:00:07]} h6 {[%clk 01:02:35]}
{[%emt 00:02:13]} 13. a3 {[%clk 00:56:10]} {[%emt 00:09:34]} Bd6 {[%clk
01:01:47]} {[%emt 00:01:17]} 14. Rae1 {[%clk 00:48:43]} {[%emt 00:07:56]} Qc7
{[%clk 00:52:19]} {[%emt 00:09:57]} 15. Nxg5 {[%clk 00:40:01]} {[%emt
00:09:13]} hxg5 {[%clk 00:52:22]} {[%emt 00:00:27]} 16. Qxg5 {[%clk 00:40:26]}
{[%emt 00:00:05]} Nf8 {[%clk 00:49:18]} {[%emt 00:03:33]} 17. e4 {[%clk
00:35:27]} {[%emt 00:05:30]} Qh7 {[%clk 00:48:17]} {[%emt 00:01:31]} 18. h4
{[%clk 00:35:45]} {[%emt 00:00:11]} Rg8 {[%clk 00:47:42]} {[%emt 00:01:05]} 19.
Qe3 {[%clk 00:33:57]} {[%emt 00:02:19]} dxe4 {[%clk 00:44:53]} {[%emt
00:03:19]} 20. Bxe4 {[%clk 00:24:32]} {[%emt 00:09:55]} fxe4 {[%clk 00:41:28]}
{[%emt 00:03:55]} 21. Nxe4 {[%clk 00:24:56]} {[%emt 00:00:06]} Be7 {[%clk
00:41:17]} {[%emt 00:00:40]} 22. Qf4 {[%clk 00:21:39]} {[%emt 00:03:47]} Kd8
{[%clk 00:32:40]} {[%emt 00:09:07]} 23. Ng5 {[%clk 00:11:07]} {[%emt 00:11:03]}
Bxg5 {[%clk 00:28:51]} {[%emt 00:04:19]} 24. hxg5 {[%clk 00:11:23]} {[%emt
00:00:14]} Qc7 {[%clk 00:27:45]} {[%emt 00:01:36]} 25. Qh4 {[%clk 00:10:50]}
{[%emt 00:01:01]} Ng6 {[%clk 00:26:19]} {[%emt 00:01:57]} 26. Qg4 {[%clk
00:11:09]} {[%emt 00:00:12]} Rh8 {[%clk 00:25:11]} {[%emt 00:01:37]} 27. Kg2
{[%clk 00:10:00]} {[%emt 00:01:40]} e5 {[%clk 00:24:13]} {[%emt 00:01:29]} 28.
Qf3 {[%clk 00:10:13]} {[%emt 00:00:16]} Bh3+ {[%clk 00:23:03]} {[%emt
00:01:41]} 29. Kg1 {[%clk 00:10:38]} {[%emt 00:00:05]} Qh7 {[%clk 00:21:40]}
{[%emt 00:01:52]} 30. Qf6+ {[%clk 00:09:20]} {[%emt 00:01:47]} Kc8 {[%clk
00:21:38]} {[%emt 00:00:33]} 0-1

[Event "Ebbe cup 43"]
[Site "Schackcentrum, Vegatan 20, Gothenburg, Sweden"]
[Date "2022.09.10"]
[Round "3.4"]
[White "Havner, Arvid"]
[Black "Andersson, Sol"]
[Result "1/2-1/2"]
[TimeControl "90 minutes for 40 moves + 15 minutes for the rest of the game + 30 seconds per move from move one."]
[WhiteFideId "1769308"]
[BlackFideId "1762702"]
[WhiteElo "1677"]
[BlackElo "1454"]

1. e4 {[%clk 01:30:57]} {[%emt 00:00:02]} c5 {[%clk 01:30:48]} {[%emt
00:00:11]} 2. Nf3 {[%clk 01:31:19]} {[%emt 00:00:09]} g6 {[%clk 01:31:04]}
{[%emt 00:00:13]} 3. d4 {[%clk 01:31:35]} {[%emt 00:00:14]} cxd4 {[%clk
01:31:29]} {[%emt 00:00:05]} 4. Nxd4 {[%clk 01:32:03]} {[%emt 00:00:02]} Bg7
{[%clk 01:31:50]} {[%emt 00:00:08]} 5. Nc3 {[%clk 01:32:21]} {[%emt 00:00:13]}
Nc6 {[%clk 01:32:11]} {[%emt 00:00:09]} 6. Be3 {[%clk 01:32:35]} {[%emt
00:00:16]} Nf6 {[%clk 01:32:11]} {[%emt 00:00:30]} 7. f3 {[%clk 01:32:47]}
{[%emt 00:00:18]} a6 {[%clk 01:27:42]} {[%emt 00:04:59]} 8. Qd2 {[%clk
01:32:39]} {[%emt 00:00:38]} d6 {[%clk 01:24:26]} {[%emt 00:03:46]} 9. O-O-O
{[%clk 01:32:34]} {[%emt 00:00:35]} O-O {[%clk 01:21:06]} {[%emt 00:03:49]} 10.
Bc4 {[%clk 01:31:34]} {[%emt 00:01:31]} Nxd4 {[%clk 01:20:38]} {[%emt
00:00:57]} 11. Bxd4 {[%clk 01:31:23]} {[%emt 00:00:42]} b5 {[%clk 01:20:50]}
{[%emt 00:00:18]} 12. Bb3 {[%clk 01:27:26]} {[%emt 00:04:26]} Bd7 {[%clk
01:18:18]} {[%emt 00:03:02]} 13. g4 {[%clk 01:18:00]} {[%emt 00:09:57]} a5
{[%clk 01:12:15]} {[%emt 00:06:33]} 14. a4 {[%clk 01:02:52]} {[%emt 00:15:38]}
bxa4 {[%clk 01:12:10]} {[%emt 00:00:35]} 15. Bxa4 {[%clk 01:02:30]} {[%emt
00:00:52]} Bxa4 {[%clk 01:12:17]} {[%emt 00:00:23]} 16. Nxa4 {[%clk 01:02:53]}
{[%emt 00:00:08]} Qc7 {[%clk 01:09:03]} {[%emt 00:03:44]} 17. Qc3 {[%clk
01:00:10]} {[%emt 00:03:13]} Qxc3 {[%clk 01:03:51]} {[%emt 00:05:41]} 18. Nxc3
{[%clk 00:59:18]} {[%emt 00:01:23]} a4 {[%clk 01:03:56]} {[%emt 00:00:25]} 19.
Kb1 {[%clk 00:57:30]} {[%emt 00:02:18]} Rfc8 {[%clk 01:00:24]} {[%emt
00:04:00]} 20. Rd3 {[%emt 00:10:45]} Nd7 {[%clk 00:54:08]} {[%emt 00:06:43]} 21.
Bxg7 {[%clk 00:46:41]} {[%emt 00:01:08]} Kxg7 {[%clk 00:54:36]} {[%emt
00:00:03]} 22. Nd5 {[%clk 00:44:47]} {[%emt 00:02:24]} e6 {[%clk 00:49:58]}
{[%emt 00:05:06]} 23. Nb4 {[%clk 00:44:40]} {[%emt 00:00:38]} Ne5 {[%clk
00:49:14]} {[%emt 00:01:14]} 24. Ra3 {[%clk 00:36:47]} {[%emt 00:08:24]}
1/2-1/2

[Event "Ebbe cup 43"]
[Site "Schackcentrum, Vegatan 20, Gothenburg, Sweden"]
[Date "2022.09.10"]
[Round "3.5"]
[White "Madevan Vaishnavi, Yaashvan"]
[Black "Dahlin, Emil"]
[Result "0-1"]
[TimeControl "90 minutes for 40 moves + 15 minutes for the rest of the game + 30 seconds per move from move one."]
[WhiteFideId "1772180"]
[BlackFideId "1771035"]
[WhiteElo "1439"]
[BlackElo "1133"]

1. e4 {[%clk 01:30:57]} {[%emt 00:00:01]} e5 {[%clk 01:30:51]} 2. Nf3 {[%clk
01:30:43]} {[%emt 06:00:26]} Nc6 {[%clk 01:30:44]} {[%emt 00:00:34]} 3. d4
{[%clk 01:31:01]} {[%emt 00:00:12]} exd4 {[%clk 01:30:34]} {[%emt 00:00:40]} 4.
Bc4 {[%clk 01:31:21]} {[%emt 00:00:10]} Bb4+ {[%clk 01:25:25]} {[%emt
00:05:38]} 5. c3 {[%clk 01:31:40]} {[%emt 00:00:11]} dxc3 {[%clk 01:25:15]}
{[%emt 00:00:40]} 6. bxc3 {[%clk 01:31:37]} {[%emt 00:00:33]} Bc5 {[%clk
01:22:43]} {[%emt 00:03:02]} 7. Bxf7+ {[%clk 01:31:48]} {[%emt 00:00:17]} Kxf7
{[%clk 01:20:14]} {[%emt 00:03:01]} 8. Qd5+ {[%clk 01:32:09]} {[%emt 00:00:09]}
Ke8 {[%clk 01:18:29]} {[%emt 00:02:14]} 9. Qh5+ {[%clk 01:32:13]} {[%emt
00:00:26]} Kf8 {[%clk 01:14:05]} {[%emt 00:04:54]} 10. Qxc5+ {[%clk 01:32:21]}
{[%emt 00:00:22]} d6 {[%clk 01:14:22]} {[%emt 00:00:13]} 11. Qa3 {[%clk
01:31:47]} {[%emt 00:01:03]} Nf6 {[%clk 01:12:18]} {[%emt 00:02:35]} 12. Bg5
{[%clk 01:29:51]} {[%emt 00:02:26]} h6 {[%clk 01:12:05]} {[%emt 00:00:43]} 13.
Bh4 {[%clk 01:29:45]} {[%emt 00:00:36]} Kf7 {[%clk 01:08:32]} {[%emt 00:04:03]}
14. Bxf6 {[%clk 01:28:59]} {[%emt 00:01:16]} Qxf6 {[%clk 01:08:12]} {[%emt
00:00:51]} 15. O-O {[%clk 01:29:17]} {[%emt 00:00:12]} Re8 {[%clk 01:07:55]}
{[%emt 00:00:46]} 16. Nbd2 {[%clk 01:29:26]} {[%emt 00:00:21]} Bg4 {[%clk
00:58:35]} {[%emt 00:09:51]} 17. Rfe1 {[%clk 01:29:25]} {[%emt 00:00:30]} Ne5
{[%clk 00:56:17]} {[%emt 00:02:48]} 18. Nxe5+ {[%clk 01:29:14]} {[%emt
00:00:42]} Rxe5 {[%clk 00:56:09]} {[%emt 00:00:37]} 19. Qb3+ {[%clk 01:29:34]}
{[%emt 00:00:11]} Kg6 {[%clk 00:51:50]} {[%emt 00:04:49]} 20. h3 {[%clk
01:29:22]} {[%emt 00:00:40]} Bc8 {[%clk 00:50:14]} {[%emt 00:02:07]} 21. Rf1
{[%clk 01:28:55]} {[%emt 00:00:58]} Rg5 {[%clk 00:44:52]} {[%emt 00:05:52]} 22.
Kh2 {[%clk 01:27:45]} {[%emt 00:01:38]} Qf4+ {[%clk 00:43:39]} {[%emt
00:01:45]} 23. g3 {[%clk 01:26:15]} {[%emt 00:02:01]} Qxd2 {[%clk 00:43:27]}
{[%emt 00:00:40]} 24. Rac1 {[%clk 01:22:40]} {[%emt 00:04:05]} Qe2 {[%clk
00:40:27]} {[%emt 00:03:31]} 25. Rce1 {[%clk 01:22:13]} {[%emt 00:00:58]} Qh5
{[%clk 00:38:31]} {[%emt 00:02:25]} 26. h4 {[%clk 01:21:08]} {[%emt 00:01:35]}
Rc5 {[%clk 00:35:04]} {[%emt 00:03:56]} 27. Qg8 {[%clk 01:20:53]} {[%emt
00:00:46]} Qg4 {[%clk 00:31:29]} {[%emt 00:04:06]} 28. Rh1 {[%clk 01:19:17]}
{[%emt 00:02:05]} Qf3 {[%emt 00:03:44]} 29. Kg1 {[%clk 01:17:03]} {[%emt
00:00:18]} Bh3 {[%clk 00:30:13]} {[%emt 00:00:59]} 30. h5+ {[%clk 01:16:22]}
{[%emt 00:01:11]} Kf6 {[%clk 00:29:48]} {[%emt 00:00:55]} 31. e5+ {[%clk
01:16:41]} {[%emt 00:00:11]} Rxe5 {[%clk 00:29:26]} {[%emt 00:00:51]} 0-1

[Event "Ebbe cup 43"]
[Site "Schackcentrum, Vegatan 20, Gothenburg, Sweden"]
[Date "2022.09.11"]
[Round "4.1"]
[White "Eldh, Hjalmar"]
[Black "Karlsson, Stefan"]
[Result "1-0"]
[TimeControl "90 minutes for 40 moves + 15 minutes for the rest of the game + 30 seconds per move from move one."]
[WhiteFideId "1767968"]
[BlackFideId "1771183"]
[WhiteElo "1717"]
[BlackElo "1660"]

1. e4 {[%clk 01:30:56]} {[%emt 00:00:02]} c6 {[%clk 01:30:58]} {[%emt
00:00:03]} 2. d4 {[%clk 01:31:19]} {[%emt 00:00:06]} d5 {[%clk 01:31:26]}
{[%emt 00:00:03]} 3. f3 {[%clk 01:31:41]} {[%emt 00:00:08]} e6 {[%clk
01:31:53]} {[%emt 00:00:03]} 4. c4 {[%clk 01:32:03]} {[%emt 00:00:07]} dxe4
{[%clk 01:31:20]} {[%emt 00:01:03]} 5. Nc3 {[%clk 01:32:25]} {[%emt 00:00:07]}
Bb4 {[%clk 01:31:02]} {[%emt 00:00:49]} 6. fxe4 {[%clk 01:32:47]} {[%emt
00:00:08]} Qh4+ {[%clk 01:31:10]} {[%emt 00:00:22]} 7. Ke2 {[%clk 01:33:09]}
{[%emt 00:00:07]} Bxc3 {[%clk 01:30:19]} {[%emt 00:01:21]} 8. bxc3 {[%clk
01:33:33]} {[%emt 00:00:06]} Qxe4+ {[%clk 01:30:42]} {[%emt 00:00:07]} 9. Kf2
{[%clk 01:33:59]} {[%emt 00:00:04]} Qh4+ {[%clk 01:25:19]} {[%emt 00:05:53]} 10.
g3 {[%clk 01:34:17]} {[%emt 00:00:12]} Qf6+ {[%clk 01:24:49]} {[%emt 00:01:00]}
11. Nf3 {[%clk 01:34:40]} {[%emt 00:00:07]} h6 {[%clk 01:23:57]} {[%emt
00:01:22]} 12. Bf4 {[%clk 01:30:43]} {[%emt 00:04:26]} Nd7 {[%clk 01:23:52]}
{[%emt 00:00:35]} 13. Bd3 {[%clk 01:30:52]} {[%emt 00:00:21]} g5 {[%clk
01:22:38]} {[%emt 00:01:45]} 14. Be5 {[%clk 01:30:58]} {[%emt 00:00:24]} Nxe5
{[%clk 01:23:02]} {[%emt 00:00:06]} 15. dxe5 {[%clk 01:31:22]} {[%emt
00:00:06]} Qg7 {[%clk 01:21:52]} {[%emt 00:01:40]} 16. Re1 {[%clk 01:29:19]}
{[%emt 00:02:33]} Bd7 {[%clk 01:21:17]} {[%emt 00:01:05]} 17. Rb1 {[%clk
01:29:33]} {[%emt 00:00:16]} b6 {[%clk 01:19:58]} {[%emt 00:01:49]} 18. c5
{[%clk 01:29:44]} {[%emt 00:00:19]} bxc5 {[%clk 01:16:11]} {[%emt 00:04:17]} 19.
Rb7 {[%clk 01:27:04]} {[%emt 00:03:08]} Ne7 {[%clk 01:10:56]} {[%emt 00:05:46]}
20. Be4 {[%clk 01:23:42]} {[%emt 00:03:50]} Rd8 {[%clk 01:06:26]} {[%emt
00:05:02]} 21. Qd6 {[%clk 01:20:03]} {[%emt 00:04:09]} g4 {[%clk 01:02:57]}
{[%emt 00:03:59]} 22. Nh4 {[%clk 01:15:55]} {[%emt 00:04:38]} f5 {[%clk
01:00:15]} {[%emt 00:03:12]} 23. exf6 {[%clk 01:04:44]} {[%emt 00:11:41]} Qxf6+
{[%clk 00:59:42]} {[%emt 00:01:03]} 24. Kg2 {[%clk 01:04:54]} {[%emt 00:00:19]}
Bc8 {[%clk 00:56:50]} {[%emt 00:03:23]} 25. Rxe7+ {[%clk 01:03:40]} {[%emt
00:01:44]} Qxe7 {[%clk 00:56:47]} {[%emt 00:00:33]} 26. Bg6+ {[%clk 01:04:03]}
{[%emt 00:00:07]} Qf7 {[%clk 00:56:03]} {[%emt 00:01:14]} 27. Bxf7+ {[%clk
01:04:19]} {[%emt 00:00:14]} Kxf7 {[%clk 00:56:26]} {[%emt 00:00:07]} 28. Rf1+
{[%clk 01:04:38]} {[%emt 00:00:10]} Ke8 {[%clk 00:56:28]} {[%emt 00:00:29]} 29.
Qxc6+ {[%clk 01:04:39]} {[%emt 00:00:28]} Rd7 {[%clk 00:56:27]} {[%emt
00:00:31]} 30. Qxc8+ {[%clk 01:04:56]} {[%emt 00:00:13]} 1-0